fUSD/lending_fUSD_20251024
["ID","MTS","AMOUNT","RATE_DAILY","PERIOD"]
[392303897,1761322317795,-500.0,0.00041917,30]
[392303898,1761322317805,-500.0,0.00041917,30]
[392303899,1761322317815,-3165.94,0.00041917,30]
[392303900,1761322317825,-577.34,0.00041917,30]
[392303901,1761322317835,-500.0,0.00041917,30]
[392303902,1761322317844,-500.0,0.00041917,30]
[392303903,1761322317853,-500.0,0.00041917,30]
[392303904,1761322317863,-320.85365401,0.00041917,30]
[392303905,1761322317872,-781.42,0.00041917,30]
[392303906,1761322317880,-500.0,0.00041917,30]
[392303907,1761322317889,-169.46027637,0.00041917,30]
[392303908,1761322317898,-592.04,0.00041917,30]
[392303909,1761322317908,-500.0,0.00041917,30]
[392303910,1761322317916,-507.17,0.00041917,30]
[392303911,1761322317926,-500.0,0.00041917,30]
[392303912,1761322317935,-500.0,0.00041917,30]
[392303913,1761322317944,-500.0,0.00041917,30]
[392303914,1761322317954,-500.0,0.00041917,30]
[392303915,1761322317963,-500.0,0.00041917,30]
[392303916,1761322317972,-500.0,0.00041917,30]
[392303917,1761322317982,-627.51,0.00041917,30]
[392303918,1761322317992,-177.31296756,0.00041917,30]
[392303919,1761322318002,-500.0,0.00041917,30]
[392303920,1761322318013,-658.05,0.00041917,30]
[392303921,1761322318023,-500.0,0.00041917,30]
[392303922,1761322318033,-500.0,0.00041917,30]
[392303923,1761322318043,-500.0,0.00041917,30]
[392303924,1761322318053,-500.0,0.00041917,30]
[392303925,1761322318062,-500.0,0.00041917,30]
[392303926,1761322318073,-43111.76,0.00041917,30]
[392303927,1761322318083,-500.0,0.00041917,30]
[392303928,1761322318094,-500.0,0.00041917,30]
[392303929,1761322318103,-500.0,0.00041917,30]
[392303930,1761322318113,-824.03,0.00041917,30]
[392303931,1761322318123,-572.74,0.00041917,30]
[392303932,1761322318132,-707.49,0.00041917,30]
[392303933,1761322318142,-500.0,0.00041917,30]
[392303934,1761322318151,-500.0,0.00041917,2]
[392303935,1761322318160,-500.0,0.00041917,30]
[392303936,1761322318170,-1143.07,0.00041917,30]
[392303937,1761322318179,-560.87,0.00041917,30]
[392303938,1761322318189,-500.0,0.00041917,120]
[392303939,1761322318199,-500.0,0.00041917,30]
[392303940,1761322318208,-500.0,0.00041917,30]
[392303941,1761322318217,-500.0,0.00041917,30]
[392303942,1761322318227,-171.54190114,0.00041917,30]
[392303943,1761322318236,-596.94,0.00041917,30]
[392303944,1761322318246,-654.5,0.00041917,30]
[392303945,1761322318255,-507.69,0.00041917,30]
[392303946,1761322318266,-500.0,0.00041917,30]
[392303947,1761322318277,-500.0,0.00041917,30]
[392303948,1761322318286,-976.73,0.00041917,30]
[392303949,1761322318296,-500.0,0.00041917,30]
[392303950,1761322318306,-526.28,0.00041917,30]
[392303951,1761322318315,-766.16,0.00041917,30]
[392303952,1761322318325,-500.0,0.00041917,30]
[392303953,1761322318335,-500.0,0.00041917,30]
[392303954,1761322318344,-500.0,0.00041917,30]
[392303955,1761322318354,-500.0,0.00041917,30]
[392303956,1761322318364,-500.0,0.00041917,30]
[392303957,1761322318375,-500.0,0.00041917,5]
[392303958,1761322318385,-500.0,0.00041917,30]
[392303959,1761322318394,-598.92,0.00041917,30]
[392303960,1761322318404,-500.0,0.00041917,30]
[392303961,1761322318414,-843.03,0.00041917,30]
[392303962,1761322318424,-500.0,0.00041917,30]
[392303963,1761322318434,-905.81,0.00041917,30]
[392303964,1761322318444,-547.11,0.00041917,30]
[392303965,1761322318453,-500.0,0.00041917,30]
[392303966,1761322318464,-649.83,0.00041917,30]
[392303967,1761322318474,-605.46,0.00041917,30]
[392303968,1761322318483,-500.0,0.00041917,30]
[392303969,1761322318493,-500.0,0.00041917,30]
[392303970,1761322318502,-500.0,0.00041917,30]
[392303971,1761322318514,-500.0,0.00041917,30]
[392303972,1761322318524,-500.0,0.00041917,30]
[392303973,1761322318534,-500.0,0.00041917,30]
[392303974,1761322318544,-675.1,0.00041917,30]
[392303975,1761322318554,-500.0,0.00041917,30]
[392303976,1761322318563,-500.0,0.00041917,30]
[392303977,1761322318574,-500.0,0.00041917,30]
[392303978,1761322318583,-500.0,0.00041917,30]
[392303979,1761322318593,-500.0,0.00041917,30]
[392303980,1761322318603,-500.0,0.00041917,30]
[392303981,1761322318613,-818.3,0.00041917,30]
[392303982,1761322318623,-500.0,0.00041917,30]
[392303983,1761322318634,-500.0,0.00041917,30]
[392303984,1761322318644,-500.0,0.00041917,30]
[392303985,1761322318654,-500.0,0.00041917,30]
[392303986,1761322318664,-500.0,0.00041917,30]
[392303987,1761322318674,-500.0,0.00041917,30]
[392303988,1761322318685,-587.40769031,0.00041917,30]
[392303989,1761322318695,-554.2,0.00041917,30]
[392303990,1761322318705,-500.0,0.00041917,30]
[392303991,1761322318715,-851.07,0.00041917,30]
[392303992,1761322318725,-500.0,0.00041917,30]
[392303993,1761322318736,-500.0,0.00041917,30]
[392303994,1761322318748,-634.48,0.00041917,30]
[392303995,1761322318759,-500.0,0.00041917,30]
[392303996,1761322318768,-500.0,0.00041917,30]
[392303997,1761322318779,-943.35,0.00041917,30]
[392303998,1761322318788,-500.0,0.00041917,30]
[392303999,1761322318798,-500.0,0.00041917,2]
[392304000,1761322318809,-500.0,0.00041917,30]
[392304001,1761322318819,-500.0,0.00041917,30]
[392304002,1761322318830,-500.0,0.00041917,30]
[392304003,1761322318841,-500.0,0.00041917,30]
[392304004,1761322319049,-500.0,0.00041917,30]
[392304005,1761322319060,-726.59,0.00041917,30]
[392304006,1761322319070,-500.0,0.00041917,30]
[392304007,1761322319079,-500.0,0.00041917,30]
[392304008,1761322319088,-500.0,0.00041917,30]
[392304009,1761322319099,-530.52,0.00041917,30]
[392304010,1761322319108,-554.24,0.00041917,30]
[392304011,1761322319118,-183.89764442,0.00041917,30]
[392304012,1761322319128,-500.0,0.00041917,30]
[392304013,1761322319138,-500.0,0.00041917,30]
[392304014,1761322319148,-500.0,0.00041917,30]
[392304015,1761322319158,-534.6,0.00041917,30]
[392304016,1761322319168,-500.0,0.00041917,30]
[392304017,1761322319178,-500.0,0.00041917,30]
[392304018,1761322319187,-154.13628343,0.00041917,30]
[392304019,1761322319197,-703.61,0.00041917,30]
[392304020,1761322319207,-500.0,0.00041917,30]
[392304021,1761322319216,-619.86,0.00041917,30]
[392304022,1761322319226,-500.0,0.00041917,30]
[392304023,1761322319235,-500.0,0.00041917,30]
[392304024,1761322319244,-500.0,0.00041917,30]
[392304025,1761322319254,-540.26,0.00041917,30]
[392304026,1761322319264,-500.0,0.00041917,30]
[392304027,1761322319274,-506.89,0.00041917,30]
[392304028,1761322319283,-500.0,0.00041917,30]
[392304029,1761322319293,-500.0,0.00041917,30]
[392304030,1761322319302,-500.0,0.00041917,30]
[392304031,1761322319311,-500.0,0.00041917,30]
[392304032,1761322319319,-500.0,0.00041917,30]
[392304033,1761322319329,-500.0,0.00041917,30]
[392304034,1761322319339,-500.0,0.00041917,30]
[392304035,1761322319348,-500.0,0.00041917,30]
[392304036,1761322319358,-500.0,0.00041917,30]
[392304037,1761322319367,-730.1,0.00041917,30]
[392304038,1761322319376,-500.0,0.00041917,30]
[392304039,1761322319385,-500.0,0.00041917,30]
[392304040,1761322319395,-500.0,0.00041917,30]
[392304041,1761322319404,-500.0,0.00041917,30]
[392304042,1761322319413,-500.0,0.00041917,30]
[392304043,1761322319423,-500.0,0.00041917,30]
[392304044,1761322319433,-581.74,0.00041917,30]
[392304045,1761322319442,-500.0,0.00041917,30]
[392304046,1761322319452,-500.0,0.00041917,30]
[392304047,1761322319462,-604.04,0.00041917,30]
[392304048,1761322319471,-501.5135764,0.00041917,2]
[392304049,1761322319481,-500.0,0.00041917,30]
[392304050,1761322319490,-611.69,0.00041917,30]
[392304051,1761322319500,-500.0,0.00041917,30]
[392304052,1761322319511,-340.0,0.00041917,30]
[392304053,1761322319520,-500.0,0.00041917,30]
[392304054,1761322319530,-500.0,0.00041917,30]
[392304055,1761322319539,-513.05,0.00041917,30]
[392304056,1761322319549,-696.18,0.00041917,30]
[392304057,1761322319559,-500.0,0.00041917,30]
[392304058,1761322319568,-1807.7,0.00041917,30]
[392304059,1761322319578,-500.0,0.00041917,30]
[392304060,1761322319587,-505.16880896,0.00041917,30]
[392304061,1761322319596,-500.0,0.00041917,2]
[392304062,1761322319606,-500.0,0.00041917,30]
[392304063,1761322319615,-500.0,0.00041917,30]
[392304064,1761322319624,-500.0,0.00041917,30]
[392304065,1761322319634,-500.0,0.00041917,30]
[392304066,1761322319643,-1380.28,0.00041917,30]
[392304067,1761322319653,-500.0,0.00041917,30]
[392304068,1761322319663,-606.24,0.00041917,30]
[392304069,1761322319672,-300.0,0.00041917,2]
[392304070,1761322319681,-783.69,0.00041917,30]
[392304071,1761322319690,-500.0,0.00041917,30]
[392304072,1761322319700,-806.84,0.00041917,30]
[392304073,1761322319709,-607.78927354,0.00041917,30]
[392304074,1761322319719,-500.0,0.00041917,30]
[392304075,1761322319728,-271.50673403,0.00041917,30]
[392304076,1761322319742,-2341.55,0.00041917,30]
[392304077,1761322319751,-500.0,0.00041917,30]
[392304078,1761322319761,-500.0,0.00041917,30]
[392304079,1761322319770,-500.0,0.00041917,30]
[392304080,1761322319781,-500.0,0.00041917,30]
[392304081,1761322319790,-500.0,0.00041917,30]
[392304082,1761322319801,-500.0,0.00041917,30]
[392304083,1761322319811,-500.0,0.00041917,30]
[392304084,1761322319822,-500.0,0.00041917,30]
[392304085,1761322319832,-500.0,0.00041917,30]
[392304086,1761322319842,-500.0,0.00041917,30]
[392304087,1761322319852,-716.52,0.00041917,30]
[392304088,1761322319862,-660.17,0.00041917,30]
[392304089,1761322319872,-531.64,0.00041917,30]
[392304090,1761322319882,-538.15,0.00041917,30]
[392304091,1761322319891,-500.0,0.00041917,30]
[392304092,1761322319901,-500.0,0.00041917,30]
[392304093,1761322319911,-567.57,0.00041917,30]
[392304094,1761322319921,-500.0,0.00041917,30]
[392304095,1761322319930,-500.0,0.00041917,30]
[392304096,1761322319939,-500.0,0.0004192,112]
[392304097,1761322319949,-500.0,0.0004193,113]
[392304098,1761322319959,-500.0,0.0004194,114]
[392304099,1761322319968,-500.0,0.0004195,115]
[392304100,1761322319977,-500.0,0.0004196,116]
[392304101,1761322319986,-301.42904761,0.00041968,10]
[392304102,1761322319996,-500.0,0.0004197,117]
[392304103,1761322320006,-364.60994939,0.00041979,2]
[392304104,1761322320016,-1691.94364254,0.00041991,120]
[392304105,1761322320025,-160.56398268,0.00041994,16]
[392304106,1761322320035,-6637.4,0.00042,120]
[392304107,1761322320045,-2037.91431629,0.00042,120]
[392304108,1761322320057,-150.0,0.00042,20]
[392304109,1761322320067,-6283.22940681,0.00042,120]
[392304110,1761322320076,-500.0,0.00042,119]
[392304111,1761322320086,-762.12,0.00042,14]
[392304112,1761322320096,-295.86,0.00042,30]
[392304113,1761322320105,-193.27397247,0.00042,10]
[392304114,1761322320115,-250.0,0.00042,120]
[392304115,1761322320125,-2514.0,0.00042,10]
[392304116,1761322320134,-1006.64647085,0.00042,30]
[392304117,1761322320143,-644.61516002,0.00042009,28]
[392304118,1761322320152,-195.16970775,0.00042042,28]
[392304119,1761322320161,-2487.53,0.00042078,2]
[392304120,1761322320170,-200.0,0.00042094,120]
[392304121,1761322320179,-150.0,0.00042111,120]
[392304122,1761322320189,-150.0,0.00042111,120]
[392304123,1761322320199,-150.0,0.00042111,120]
[392304124,1761322320209,-150.0,0.00042111,120]
[392304125,1761322320219,-150.0,0.00042111,120]
[392304126,1761322320228,-150.0,0.00042111,120]
[392304127,1761322320238,-150.0,0.00042111,120]
[392304128,1761322320247,-150.0,0.00042111,120]
[392304129,1761322320258,-150.0,0.00042111,120]
[392304130,1761322320269,-150.0,0.00042111,120]
[392304131,1761322320279,-150.0,0.00042111,120]
[392304132,1761322320290,-150.0,0.00042111,120]
[392304133,1761322320300,-150.0,0.00042111,120]
[392304134,1761322320310,-150.0,0.00042111,120]
[392304135,1761322320321,-150.0,0.00042111,120]
[392304136,1761322320330,-150.0,0.00042111,120]
[392304137,1761322320339,-150.0,0.00042111,120]
[392304138,1761322320349,-150.0,0.00042111,120]
[392304139,1761322320359,-150.0,0.00042111,120]
[392304140,1761322320368,-150.0,0.00042111,120]
[392304141,1761322320379,-150.0,0.00042111,120]
[392304142,1761322320388,-150.0,0.00042111,120]
[392304143,1761322320398,-150.0,0.00042111,120]
[392304144,1761322320408,-150.0,0.00042111,120]
[392304145,1761322320417,-327.96,0.00042133,2]
[392304146,1761322320427,-166.66,0.00042138,2]
[392304147,1761322320437,-159.62,0.00042143,2]
[392304148,1761322320447,-1192.71315387,0.00042157,120]
[392304149,1761322320457,-475.59,0.00042162,30]
[392304150,1761322320467,-475.59,0.00042162,30]
[392304151,1761322320476,-475.59,0.00042162,30]
[392304152,1761322320486,-475.59,0.00042162,30]
[392304153,1761322320495,-475.59,0.00042162,30]
[392304154,1761322320504,-625.56,0.00042162,30]
[392304155,1761322320515,-1392.54,0.00042162,30]
[392304156,1761322320524,-1316.23,0.00042162,30]
[392304157,1761322320534,-475.59,0.00042162,30]
[392304158,1761322320544,-475.59,0.00042162,30]
[392304159,1761322320554,-475.59,0.00042162,30]
[392304160,1761322320564,-475.59,0.00042162,30]
[392304161,1761322320574,-153.7,0.00042165,2]
[392304162,1761322320583,-517.1336676,0.00042168,10]
[392304163,1761322320594,-7000.0,0.00042175,3]
[392304164,1761322320603,-200.0,0.00042187,2]
[392304165,1761322320613,-200.0,0.00042187,2]
[392304166,1761322320622,-257.0,0.00042187,2]
[392304167,1761322320631,-234.859181,0.00042191,30]
[392304168,1761322320640,-808.712269,0.00042191,30]
[392304169,1761322320650,-277.693017,0.00042191,30]
[392304170,1761322320659,-500.0,0.00042191,30]
[392304171,1761322320669,-500.0,0.00042191,30]
[392304172,1761322320678,-500.0,0.00042191,30]
[392304173,1761322320688,-500.0,0.00042191,30]
[392304174,1761322320697,-500.0,0.00042191,30]
[392304175,1761322320706,-516.07016131,0.00042191,30]
[392304176,1761322320716,-500.0,0.00042191,30]
[392304177,1761322320725,-500.0,0.00042191,30]
[392304178,1761322320737,-500.0,0.00042191,30]
[392304179,1761322320747,-500.0,0.00042191,30]
[392304180,1761322320756,-500.0,0.00042191,30]
[392304181,1761322320768,-622.47,0.00042191,30]
[392304182,1761322320779,-500.0,0.00042191,30]
[392304183,1761322320788,-509.02,0.00042191,30]
[392304184,1761322320798,-516.35,0.00042191,30]
[392304185,1761322320808,-500.0,0.00042191,30]
[392304186,1761322320819,-825.82,0.00042191,30]
[392304187,1761322320829,-500.0,0.00042191,30]
[392304188,1761322320839,-500.0,0.00042191,30]
[392304189,1761322320848,-500.0,0.00042191,30]
[392304190,1761322320858,-500.0,0.00042191,30]
[392304191,1761322320868,-500.0,0.00042191,30]
[392304192,1761322320878,-500.0,0.00042191,30]
[392304193,1761322320888,-500.0,0.00042191,30]
[392304194,1761322320898,-607.61,0.00042191,30]
[392304195,1761322320908,-500.0,0.00042191,30]
[392304196,1761322320918,-271.70234355,0.00042191,30]
[392304197,1761322320927,-500.0,0.00042191,30]
[392304198,1761322320937,-500.0,0.00042191,30]
[392304199,1761322320946,-510.24,0.00042191,30]
[392304200,1761322320955,-500.0,0.00042191,30]
[392304201,1761322320964,-500.0,0.00042191,30]
[392304202,1761322320974,-500.0,0.00042191,30]
[392304203,1761322320984,-500.0,0.00042191,30]
[392304204,1761322320993,-290.05342403,0.00042191,2]
[392304205,1761322321003,-500.0,0.00042191,30]
[392304206,1761322321013,-500.0,0.00042191,30]
[392304207,1761322321022,-440.41426811,0.00042191,30]
[392304208,1761322321032,-500.0,0.00042191,30]
[392304209,1761322321042,-500.0,0.00042191,30]
[392304210,1761322321051,-500.0,0.00042191,30]
[392304211,1761322321061,-500.0,0.00042191,30]
[392304212,1761322321078,-500.0,0.00042191,30]
[392304213,1761322321088,-570.88596838,0.00042191,30]
[392304214,1761322321097,-500.0,0.00042191,30]
[392304215,1761322321107,-244.06857495,0.00042191,30]
[392304216,1761322321118,-500.0,0.00042191,30]
[392304217,1761322321127,-627.57617149,0.00042191,30]
[392304218,1761322321137,-500.0,0.00042191,30]
[392304219,1761322321147,-500.0,0.00042191,30]
[392304220,1761322321157,-644.18,0.00042191,30]
[392304221,1761322321168,-500.0,0.00042191,30]
[392304222,1761322321177,-500.0,0.00042191,30]
[392304223,1761322321187,-500.0,0.00042191,30]
[392304224,1761322321197,-626.86,0.00042191,30]
[392304225,1761322321206,-500.0,0.00042191,30]
[392304226,1761322321220,-769.96,0.00042191,30]
[392304227,1761322321229,-477.40380468,0.00042191,30]
[392304228,1761322321237,-500.0,0.00042191,30]
[392304229,1761322321247,-538.58,0.00042191,30]
[392304230,1761322321256,-500.0,0.00042191,30]
[392304231,1761322321266,-500.0,0.00042191,30]
[392304232,1761322321275,-500.0,0.00042191,30]
[392304233,1761322321284,-500.0,0.00042191,30]
[392304234,1761322321294,-500.0,0.00042191,30]
[392304235,1761322321304,-645.90798094,0.00042191,30]
[392304236,1761322321313,-500.0,0.00042191,30]
[392304237,1761322321323,-500.0,0.00042191,30]
[392304238,1761322321332,-500.0,0.00042191,30]
[392304239,1761322321342,-500.0,0.00042191,30]
[392304240,1761322321352,-500.0,0.00042191,30]
[392304241,1761322321361,-500.0,0.00042191,30]
[392304242,1761322321371,-801.91,0.00042191,30]
[392304243,1761322321381,-500.0,0.00042191,30]
[392304244,1761322321390,-500.0,0.00042191,30]
[392304245,1761322321399,-515.08,0.00042191,30]
[392304246,1761322321409,-627.53,0.00042191,30]
[392304247,1761322321419,-631.49,0.00042191,30]
[392304248,1761322321428,-500.0,0.00042191,30]
[392304249,1761322321438,-500.0,0.00042191,30]
[392304250,1761322321448,-500.0,0.00042191,30]
[392304251,1761322321457,-500.0,0.00042191,30]
[392304252,1761322321467,-858.53,0.00042191,30]
[392304253,1761322321476,-500.0,0.00042191,30]
[392304254,1761322321486,-500.0,0.00042191,30]
[392304255,1761322321496,-500.0,0.00042191,2]
[392304256,1761322321506,-500.0,0.00042191,30]
[392304257,1761322321515,-204.8344717,0.00042191,2]
[392304258,1761322321524,-500.0,0.00042191,30]
[392304259,1761322321534,-500.0,0.00042191,30]
[392304260,1761322321544,-500.0,0.00042191,30]
[392304261,1761322321554,-500.0,0.00042191,30]
[392304262,1761322321563,-635.93,0.00042191,30]
[392304263,1761322321573,-500.0,0.00042191,30]
[392304264,1761322321582,-500.0,0.00042191,30]
[392304265,1761322321591,-500.0,0.00042191,30]
[392304266,1761322321600,-741.25,0.00042191,30]
[392304267,1761322321610,-500.0,0.00042191,30]
[392304268,1761322321619,-500.0,0.00042191,30]
[392304269,1761322321629,-692.25,0.00042191,30]
[392304270,1761322321638,-500.0,0.00042191,30]
[392304271,1761322321648,-633.45,0.00042191,30]
[392304272,1761322321660,-500.0,0.00042191,30]
[392304273,1761322321675,-500.0,0.00042191,30]
[392304274,1761322321685,-500.0,0.00042191,30]
[392304275,1761322321695,-500.0,0.00042191,30]
[392304276,1761322321705,-500.0,0.00042191,30]
[392304277,1761322321715,-682.78,0.00042191,30]
[392304278,1761322321725,-500.0,0.00042191,30]
[392304279,1761322321735,-500.0,0.00042191,30]
[392304280,1761322321751,-500.0,0.00042191,30]
[392304281,1761322321761,-500.0,0.00042191,30]
[392304282,1761322321772,-500.0,0.00042191,30]
[392304283,1761322321781,-500.0,0.00042191,30]
[392304284,1761322321794,-500.0,0.00042191,30]
[392304285,1761322321803,-898.81,0.00042191,30]
[392304286,1761322321813,-500.0,0.00042191,30]
[392304287,1761322321823,-500.0,0.00042191,30]
[392304288,1761322321837,-700.85,0.00042191,30]
[392304289,1761322321848,-500.0,0.00042191,30]
[392304290,1761322321858,-500.0,0.00042191,30]
[392304291,1761322321867,-500.0,0.00042191,30]
[392304292,1761322321877,-500.0,0.00042191,30]
[392304293,1761322321887,-663.01,0.00042191,30]
[392304294,1761322321897,-500.0,0.00042191,30]
[392304295,1761322321906,-158.02634257,0.00042191,30]
[392304296,1761322321916,-500.0,0.00042191,30]
[392304297,1761322321926,-709.15,0.00042191,30]
[392304298,1761322321935,-500.0,0.00042191,30]
[392304299,1761322321945,-500.0,0.00042191,30]
[392304300,1761322321955,-707.03,0.00042191,30]
[392304301,1761322321965,-234.20700823,0.00042191,30]
[392304302,1761322321974,-829.57,0.00042191,30]
[392304303,1761322321983,-952.31,0.00042191,30]
[392304304,1761322321995,-500.0,0.00042191,30]
[392304305,1761322322004,-500.0,0.00042191,30]
[392304306,1761322322014,-500.0,0.00042191,30]
[392304307,1761322322024,-500.0,0.00042191,30]
[392304308,1761322322034,-500.0,0.00042191,30]
[392304309,1761322322044,-527.2,0.00042191,30]
[392304310,1761322322054,-500.0,0.00042191,30]
[392304311,1761322322063,-500.0,0.00042191,30]
[392304312,1761322322073,-500.0,0.00042191,30]
[392304313,1761322322082,-500.0,0.00042191,30]
[392304314,1761322322092,-500.0,0.00042191,30]
[392304315,1761322322101,-771.78,0.00042191,30]
[392304316,1761322322111,-706.52,0.00042191,30]
[392304317,1761322322121,-500.0,0.00042191,30]
[392304318,1761322322131,-500.0,0.00042191,30]
[392304319,1761322322140,-768.08,0.00042191,30]
[392304320,1761322322151,-599.68,0.00042191,30]
[392304321,1761322322160,-500.0,0.00042191,30]
[392304322,1761322322169,-500.0,0.00042191,30]
[392304323,1761322322179,-613.19,0.00042191,30]
[392304324,1761322322188,-500.0,0.00042191,30]
[392304325,1761322322198,-500.0,0.00042191,30]
[392304326,1761322322209,-613.95,0.00042191,30]
[392304327,1761322322225,-500.0,0.00042191,30]
[392304328,1761322322234,-500.0,0.00042191,30]
[392304329,1761322322244,-627.71,0.00042191,30]
[392304330,1761322322253,-500.0,0.00042191,30]
[392304331,1761322322263,-662.69,0.00042191,30]
[392304332,1761322322272,-526.63,0.00042191,30]
[392304333,1761322322281,-500.0,0.00042191,30]
[392304334,1761322322291,-500.0,0.00042191,30]
[392304335,1761322322300,-500.0,0.00042191,30]
[392304336,1761322322309,-500.0,0.00042191,30]
[392304337,1761322322318,-1090.4,0.00042191,30]
[392304338,1761322322327,-500.0,0.00042191,30]
[392304339,1761322322337,-500.65,0.00042191,30]
[392304340,1761322322346,-500.0,0.00042191,30]
[392304341,1761322322355,-500.0,0.00042191,30]
[392304342,1761322322365,-624.06,0.00042191,30]
[392304343,1761322322374,-500.0,0.00042191,30]
[392304344,1761322322383,-755.72,0.00042191,30]
[392304345,1761322322392,-351.13912372,0.00042191,10]
[392304346,1761322322403,-500.0,0.00042191,30]
[392304347,1761322322413,-500.0,0.00042191,30]
[392304348,1761322322423,-500.0,0.00042191,30]
[392304349,1761322322433,-740.41,0.00042191,30]
[392304350,1761322322442,-500.0,0.00042191,30]
[392304351,1761322322452,-500.0,0.00042191,30]
[392304352,1761322322462,-500.0,0.00042191,30]
[392304353,1761322322471,-500.0,0.00042191,30]
[392304354,1761322322481,-500.0,0.00042191,30]
[392304355,1761322322490,-439.28283948,0.00042191,30]
[392304356,1761322322499,-500.0,0.00042191,30]
[392304357,1761322322509,-568.1279169,0.00042191,30]
[392304358,1761322322519,-500.0,0.00042191,30]
[392304359,1761322322529,-500.000001,0.00042191,30]
[392304360,1761322322539,-500.0,0.00042191,30]
[392304361,1761322322548,-500.0,0.00042191,30]
[392304362,1761322322558,-500.0,0.00042191,30]
[392304363,1761322322568,-500.0,0.00042191,30]
[392304364,1761322322577,-500.0,0.00042191,30]
[392304365,1761322322587,-500.0,0.00042191,30]
[392304366,1761322322596,-500.0,0.00042191,30]
[392304367,1761322322606,-500.0,0.00042191,30]
[392304368,1761322322616,-500.0,0.00042191,30]
[392304369,1761322322626,-464.15734,0.00042191,30]
[392304370,1761322322636,-1136.13,0.00042191,30]
[392304371,1761322322646,-500.0,0.00042191,30]
[392304372,1761322322655,-549.55,0.00042191,30]
[392304373,1761322322665,-500.0,0.00042191,30]
[392304374,1761322322675,-638.56,0.00042191,30]
[392304375,1761322322685,-686.03,0.00042191,30]
[392304376,1761322322695,-500.0,0.00042191,30]
[392304377,1761322322705,-500.0,0.00042191,30]
[392304378,1761322322715,-706.79,0.00042191,30]
[392304379,1761322322725,-500.0,0.00042191,30]
[392304380,1761322322735,-500.0,0.00042191,30]
[392304381,1761322322753,-500.0,0.00042191,30]
[392304382,1761322322763,-382.666022,0.00042191,30]
[392304383,1761322322773,-500.0,0.00042191,30]
[392304384,1761322322783,-260.833285,0.00042191,30]
[392304385,1761322322793,-500.0,0.00042191,30]
[392304386,1761322322802,-500.0,0.00042191,30]
[392304387,1761322322811,-500.0,0.00042191,30]
[392304388,1761322322822,-602.64,0.00042191,30]
[392304389,1761322322832,-586.4,0.00042191,30]
[392304390,1761322322842,-500.0,0.00042191,30]
[392304391,1761322322852,-500.0,0.00042191,30]
[392304392,1761322322861,-547.9,0.00042191,30]
[392304393,1761322322871,-566.32,0.00042191,30]
[392304394,1761322322881,-2351.88,0.00042191,2]
[392304395,1761322322891,-500.0,0.00042191,30]
[392304396,1761322322900,-500.0,0.00042191,30]